Cogmind - Beta 16.1 @@@ ROGUE MODE // 2026.03.05 @ 22:50:42 Player: star Result: Self-destructed Performance ------------- Evolutions (7) 3500 Regions Visited (11) 2200 Robots Destroyed (56) 280 Value Destroyed (1807) 1807 Prototype IDs (2) 40 Alien Tech Used (0) 0 Bonus (149) 149 TOTAL SCORE: 7976 Bonus ------- Entered Garrisons 200 Friendly Fire -51 Cogmind --------- Core Integrity 553/1300 Matter 184/300 Energy 62/100 System Corruption 0% Temperature Cool (0) Movement Core (350) Ox6 Location -3/Garrison Parts ------- > --- POWER (1) -------- (None) > --- PROPULSION (10) -- (None) > --- UTILITY (8) ------ Large Storage Unit Advanced Visual Processing Unit Launcher Guidance Computer Launcher Guidance Computer Improved Hacking Suite > --- WEAPON (2) ------- (None) > --- INVENTORY (15) --- Large Matter Pod (0) Weight Redist. System Weapon Cycler Hardlight Generator Hacking Suite Improved Component Analysis Suite Nova Cannon Minigun Peak State ------------ > --- POWER ------------ Light Antimatter Reactor > --- PROPULSION ------- Gravmag Array Gravmag Array Gravmag Array Gravmag Array Antigrav System > --- UTILITY ---------- Large Storage Unit Advanced Visual Processing Unit Launcher Guidance Computer Launcher Guidance Computer Improved Reaction Control System Advanced Phase Shifter Improved Hacking Suite > --- WEAPON ----------- Compact HERF Cannon Assault Cannon > --- INVENTORY -------- Gravmag Array Antigrav System Antigrav System Large Matter Pod Weight Redist. System Weapon Cycler Hardlight Generator Hacking Suite Improved Component Analysis Suite Nova Cannon Minigun Heavy Machine Gun Mini Grenade Launcher [Rating: 100] Favorites ----------- Power Nuclear Core Engine Improved Deuterium Engine Power Core Nuclear Core Reactor Light Antimatter Reactor Propulsion Gravmag Array Treads Light Treads Leg Carbon-fiber Leg Wheel Armored Wheel Hover Unit Gravmag Array Flight Unit Flight Unit Utility Launcher Guidance Computer Device Weight Redist. System Storage Large Storage Unit Processor Launcher Guidance Computer Hackware Improved Hacking Suite Protection Light Armor Plating Weapon Gauss Cannon Energy Gun Heavy Laser Energy Cannon Compact HERF Cannon Ballistic Gun Heavy Machine Gun Ballistic Cannon Gauss Cannon Launcher Mini Grenade Launcher Build | -11 -10 -9 -8 -7 -6 -5 -4 -4 -4 -3 -3 ------- Run | Yrd Mat Mat Mat Fac Fac Fac Fac Upp Upp Res Gar Slots Evolved 14 | . . 2 2 2 2 2 2 . . 2 . Power . | . . . . . . . . . . . . Propulsion 8 | . . 2 . . 2 2 2 . . . . Utility 6 | . . . 2 2 . . . . . 2 . Weapon . | . . . . . . . . . . . . Parts Attached 69 | 6 10 9 9 12 4 3 9 2 . 2 3 Power 7 | 1 1 . 1 1 1 . 1 1 . . . Engine 4 | 1 1 . . 1 1 . . . . . . Core 1 | . . . 1 . . . . . . . . Reactor 2 | . . . . . . . 1 1 . . . Propulsion 29 | 2 4 4 2 5 1 2 7 . . . 2 Treads 2 | . 1 1 . . . . . . . . . Leg 2 | . . . 2 . . . . . . . . Wheel 5 | 2 . 3 . . . . . . . . . Hover 16 | . . . . 5 1 1 7 . . . 2 Flight 4 | . 3 . . . . 1 . . . . . Utility 18 | 1 2 2 3 4 1 1 1 1 . 1 1 Device 5 | . . 2 . . 1 . . 1 . . 1 Storage 3 | 1 1 . 1 . . . . . . . . Processor 5 | . . . 1 3 . . 1 . . . . Hackware 1 | . . . . . . 1 . . . . . Protection 4 | . 1 . 1 1 . . . . . 1 . Artifact . | . . . . . . . . . . . . Weapon 15 | 2 3 3 3 2 1 . . . . 1 . Energy Gun 3 | . . 1 2 . . . . . . . . Energy Cannon 2 | . . 1 . . . . . . . 1 . Ballistic Gun 4 | 2 1 . . . 1 . . . . . . Ballistic Cannon 3 | . . . 1 2 . . . . . . . Launcher 3 | . 2 1 . . . . . . . . . Special Weapon . | . . . . . . . . . . . . Impact Weapon . | . . . . . . . . . . . . Slashing Weapon . | . . . . . . . . . . . . Piercing Weapon . | . . . . . . . . . . . . Special Melee Weapon . | . . . . . . . . . . . . Unidentified Prototypes 2 | . . . . 2 . . . . . . . Parts Lost 35 | . 4 11 . . 1 . 1 3 . . 15 Power 4 | . 1 1 . . . . . 1 . . 1 Propulsion 18 | . 3 4 . . 1 . 1 1 . . 8 Utility 3 | . . 1 . . . . . . . . 2 Weapon 10 | . . 5 . . . . . 1 . . 4 Highest Loss Streak 15 | . 2 7 . . 1 . 1 2 . . 15 To Critical Strikes . | . . . . . . . . . . . . Average Backups 11 | . 6 8 10 13 11 13 13 12 11 11 11 Power . | . . . . . . . 1 . . . . Propulsion 2 | . . 1 2 3 2 1 2 3 3 3 2 Utility 4 | . 2 3 6 5 5 7 6 6 6 5 6 Weapon 3 | . 3 3 2 4 4 4 3 2 2 3 3 Tool/Special . | . . . . . . . . . . . . Unused Backups 15 | . 1 . . 2 . 1 4 . . . 7 Power 1 | . . . . . . . 1 . . . . Propulsion 4 | . . . . 1 . 1 2 . . . . Utility 8 | . 1 . . 1 . . 1 . . . 5 Weapon 2 | . . . . . . . . . . . 2 Tool/Special . | . . . . . . . . . . . . Average Slot Usage (%) 82 | . 77 79 70 94 81 90 78 74 73 69 59 Engine 3 | . 8 5 . 2 6 5 2 . . . . Core 2 | . . . 8 4 . . . . . . . Treads 1 | . 1 12 . . . . . . . . . Leg 3 | . . . 11 9 . . . . . . . Wheel 6 | . 8 9 18 9 . . . . . . . Hover 14 | . . . . 11 26 33 31 27 26 23 17 Flight 2 | . 9 10 . . . 3 . . . . . Device 2 | . . 9 . . 1 5 5 5 5 4 3 Storage 7 | . 14 11 9 7 6 5 5 5 5 4 4 Processor 15 | . . . 3 28 26 19 15 15 15 14 14 Hackware 1 | . . . . . . 3 5 5 5 4 4 Protection 2 | . 6 . 3 4 . . . . . 2 1 Energy Gun 1 | . . 5 8 1 . . . . . . . Ballistic Gun 6 | . 24 13 . . . 5 5 5 5 . . Ballistic Cannon 6 | . . . 7 11 11 4 5 3 5 4 2 Launcher 1 | . 3 . . 1 . . . 1 . . . Peak Build Rating 100 | 6 7 12 27 49 51 65 93 95 87 99 100 Average Rating 44 | 4 5 8 20 42 47 60 87 88 87 97 76 On Entrance 47 | . 6 6 7 27 47 51 65 93 87 87 99 Avg Prop Armor Cover (%) 7 | . 4 9 9 10 . 3 4 3 . . . Naked Turns . | . . . . . . . . . . . . Heaviest Build 66 | 13 23 21 39 45 45 45 45 46 44 66 66 Greatest Support 108 | 26 26 40 30 33 44 50 108 108 91 91 91 Greatest Overweight (x) 9 | . 7 1 1 1 1 1 . . . . 9 Average Overweight (x) . | . 1 . . 1 . . . . . . . Largest Inventory Capacity 15 | 8 10 10 15 15 15 15 15 15 15 15 15 Average Capacity 13 | 6 9 10 12 15 15 15 15 15 15 15 15 Most Carried 15 | 1 10 10 15 15 15 15 15 15 13 14 14 Average Carried 12 | . 6 8 11 14 12 14 14 14 13 12 12 Final Capacity 15 | 8 10 10 15 15 15 15 15 15 15 15 15 Final Carried 15 | 1 10 5 15 13 15 15 15 13 13 14 8 Class Distribution -------------------- 64% | Mutant 35% | Scavenger-Mutant Dominant Class ---------------- Mutant | -10/Materials Mutant | -9/Materials Mutant | -8/Materials Mutant | -7/Factory Mutant | -6/Factory Scavenger-Mutant | -5/Factory Scavenger-Mutant | -4/Factory Scavenger-Mutant | -4/Upper Caves Scavenger-Mutant | -4/Upper Caves Mutant | -3/Research Mutant | -3/Garrison Resources | -11 -10 -9 -8 -7 -6 -5 -4 -4 -4 -3 -3 ----------- Run | Yrd Mat Mat Mat Fac Fac Fac Fac Upp Upp Res Gar Matter Collected 1814 | 244 374 210 267 178 72 140 85 239 5 . . Remotely . | . . . . . . . . . . . . Salvage Created 1522 | . 359 487 200 171 . 201 . 104 . . . Parts 95 | . 21 26 12 19 . 12 . 5 . . . Haulers Intercepted 4 | . . . . 3 . 1 . . . . . Recyclers Shooed 4 | . 3 1 . . . . . . . . . Parts Field Recycled . | . . . . . . . . . . . . Retrieved Matter . | . . . . . . . . . . . . Parts Self-Destructed 2 | . . . . . . . . 2 . . . Prevented . | . . . . . . . . . . . . Parts Restored . | . . . . . . . . . . . . Kills | -11 -10 -9 -8 -7 -6 -5 -4 -4 -4 -3 -3 ------- Run | Yrd Mat Mat Mat Fac Fac Fac Fac Upp Upp Res Gar Combat Hostiles Destroyed 49 | . 12 13 5 2 . 8 . 9 . . . Guns 18 | . 10 5 2 . . . . 1 . . . Cannons 7 | . . 3 3 . . . . 1 . . . AOE 24 | . 2 5 . 2 . 8 . 7 . . . Classes Destroyed 8 | . 3 2 . 3 . . . . . . . Worker 1 | . . . . 1 . . . . . . . Builder 1 | . . . . 1 . . . . . . . Hauler 4 | . . . . 3 . 1 . . . . . Watcher 1 | . 1 . . . . . . . . . . Swarmer 21 | . 3 . . 2 . 8 . 8 . . . Grunt 21 | . 9 9 3 . . . . . . . . Duelist 2 | . . 2 . . . . . . . . . Sentry 5 | . . 2 2 . . . . 1 . . . Best Kill Streak 6 | . 3 6 3 4 . 4 . 5 . . . Combat Bots Only 6 | . 3 6 3 2 . 4 . 5 . . . Max Kills in Single Turn 4 | . 1 2 1 4 . 4 . 2 . . . Gunslinging . | . . . . . . . . . . . . Exploded 4 | . 1 2 . 2 . 4 . 2 . . . Melee . | . . . . . . . . . . . . Uniques/NPCs Destroyed . | . . . . . . . . . . . . Combat | -11 -10 -9 -8 -7 -6 -5 -4 -4 -4 -3 -3 -------- Run | Yrd Mat Mat Mat Fac Fac Fac Fac Upp Upp Res Gar Hostile Shots Fired 453 | . 69 101 18 22 11 10 12 52 . 3 155 Missed 160 | . 12 34 7 10 2 4 3 21 . 1 66 Hits 293 | . 57 67 11 12 9 6 9 31 . 2 89 Melee 8 | . . 8 . . . . . . . . . Projectile 285 | . 57 59 11 12 9 6 9 31 . 2 89 Critical Strikes 6 | . 1 2 1 . . . 1 . . . 1 Damage Taken 5335 | . 636 1210 176 118 171 98 249 698 . 34 1945 Core 1306 | . 123 298 49 31 16 30 . 12 . . 747 Absorbed by Shields . | . . . . . . . . . . . . Core Remaining (%) 81 | 100 50 25 91 95 98 97 . . 98 . . Volleys Fired 153 | . 52 36 20 6 . 7 . 25 6 . 1 Largest 2 | . 2 2 2 2 . 2 . 2 2 . 2 Hottest 131 | . 50 100 106 80 . 70 . 70 67 . 131 Shots Fired 252 | . 85 69 33 9 . 11 . 34 9 . 2 Gun 155 | . 78 48 13 . . 4 . 9 3 . . Cannon 67 | . . 18 20 8 . 4 . 9 6 . 2 Launcher 30 | . 7 3 . 1 . 3 . 16 . . . Special . | . . . . . . . . . . . . Kinetic 178 | . 78 36 20 8 . 8 . 18 9 . 1 Thermal 43 | . . 30 13 . . . . . . . . Explosive 30 | . 7 3 . 1 . 3 . 16 . . . Electromagnetic 1 | . . . . . . . . . . . 1 Robot Hit Streak 14 | . 9 12 5 13 . 14 . 7 1 . 3 Robot Miss Streak 6 | . 3 2 4 . . 3 . 6 3 . . Penetration Max . | . . . . . . . . . . . . Secondary Targets 1 | . 1 . . . . . . . . . . Max Gunslinging Chain 1 | . 1 . . . . . . . . . . Shots Hit Robots 163 | . 57 51 22 8 . 3 . 17 3 . 2 Core Hits 98 | . 25 26 8 10 1 9 . 18 1 . . Critical Kills . | . . . . . . . . . . . . Critical Parts Destroyed 1 | . 1 . . . . . . . . . . Critical Strikes 3 | . 1 . 1 . . 1 . . . . . Destroy 1 | . 1 . . . . . . . . . . Blast 2 | . . . 1 . . 1 . . . . . Melee Attacks . | . . . . . . . . . . . . Impact . | . . . . . . . . . . . . Slashing . | . . . . . . . . . . . . Piercing . | . . . . . . . . . . . . Sneak Attacks . | . . . . . . . . . . . . Combat Hostiles . | . . . . . . . . . . . . Follow-up Attacks . | . . . . . . . . . . . . Damage Inflicted 4933 | . 1033 1155 485 443 13 678 . 1006 63 . 57 Guns 1318 | . 632 340 167 . . 69 . 89 21 . . Cannons 1030 | . . 276 318 199 . 31 . 107 42 . 57 Explosions 2568 | . 401 535 . 244 . 578 . 810 . . . Melee . | . . . . . . . . . . . . Ramming 17 | . . 4 . . 13 . . . . . . Kinetic 1762 | . 632 242 318 199 . 100 . 196 63 . 12 Thermal 624 | . 83 374 167 . . . . . . . . Explosive 2485 | . 318 535 . 244 . 578 . 810 . . . Electromagnetic 45 | . . . . . . . . . . . 45 Impact . | . . . . . . . . . . . . Slashing . | . . . . . . . . . . . . Piercing . | . . . . . . . . . . . . Highest Corruption 1 | . . . . 1 . . . . . . . Average Corruption 1 | . . . . 1 . . . . . . . Corruption Purged . | . . . . . . . . . . . . Corruption Blocked . | . . . . . . . . . . . . Overload Shots . | . . . . . . . . . . . . Overflow Damage 69 | . 10 . . 8 . 37 . 14 . . . Projectiles . | . . . . . . . . . . . . Explosions 69 | . 10 . . 8 . 37 . 14 . . . Melee . | . . . . . . . . . . . . Knockbacks 3 | . . . 2 . . . . . 1 . . Impact . | . . . . . . . . . . . . Kinetic 3 | . . . 2 . . . . . 1 . . Secondary . | . . . . . . . . . . . . Self-Inflicted Damage 249 | . . 186 . . 6 . . 57 . . . Shots 6 | . . 4 . . . . . 2 . . . Rammed 3 | . . 2 . . 1 . . . . . . Targets Rammed 3 | . . 2 . . 1 . . . . . . Kicked . | . . . . . . . . . . . . Crushed . | . . . . . . . . . . . . Highest Temperature 264 | . 55 42 264 12 . 16 2 50 30 1 78 Average Temperature 34 | . 18 16 92 6 . 12 2 15 17 1 32 Received Heat Transfer 996 | . 303 294 90 24 63 9 36 90 . . 87 Siege Activations . | . . . . . . . . . . . . Martial Activations . | . . . . . . . . . . . . Shielding Activations . | . . . . . . . . . . . . Robots Disrupted . | . . . . . . . . . . . . Combat Hostiles . | . . . . . . . . . . . . Robots Corrupted . | . . . . . . . . . . . . Combat Hostiles . | . . . . . . . . . . . . Parts Fried . | . . . . . . . . . . . . Impact Corruptions . | . . . . . . . . . . . . Robots Melted . | . . . . . . . . . . . . Combat Hostiles . | . . . . . . . . . . . . Parts Melted . | . . . . . . . . . . . . Heat Transferred 1200 | . 50 817 333 . . . . . . . . Parts Sabotaged . | . . . . . . . . . . . . Parts Stolen . | . . . . . . . . . . . . Parts Stripped . | . . . . . . . . . . . . Power Chain Reactions . | . . . . . . . . . . . . Alert | -11 -10 -9 -8 -7 -6 -5 -4 -4 -4 -3 -3 ------- Run | Yrd Mat Mat Mat Fac Fac Fac Fac Upp Upp Res Gar Maximum Alert Level . | . . . . . . . . . . . . Low Security (%) 100 | 100 100 100 100 100 100 100 100 . . 100 100 Level 1 . | . . . . . . . . . . . . Level 2 . | . . . . . . . . . . . . Level 3 . | . . . . . . . . . . . . Level 4 . | . . . . . . . . . . . . Level 5 . | . . . . . . . . . . . . High Security . | . . . . . . . . . . . . Max Security . | . . . . . . . . . . . . Peak Influence 197 | . 182 171 90 59 12 197 81 . . 77 140 Initial 81 | . . 66 59 14 . . 81 . . 59 42 Average 38 | . 59 83 53 8 . 123 12 . . 65 38 Influence Increases 1869 | . 410 389 133 150 12 267 . 325 . 18 165 Destroy 0b10 Robot/C 980 | . 240 260 100 40 . 160 . 180 . . . Destroy 0b10 Robot/NC 35 | . 5 . . 25 . 5 . . . . . Destroy Leader 180 | . 62 60 30 6 . 12 . 10 . . . Successful Hack 48 | . . . . 18 12 . . . . 18 . Select Force Hacks 50 | . . . . 50 . . . . . . . Disable Machine 90 | . 30 30 . . . 30 . . . . . Destroy Structure 126 | . 43 39 3 11 . 30 . . . . . Partial Spotted 30 | . . . . . . 30 . . . . . Lose Combat Pursuer 330 | . 30 . . . . . . 135 . . 165 Influence Decreases 1749 | . 252 404 244 182 12 100 167 190 47 49 102 Entered New Map 351 | . . 92 84 18 . . 86 . 27 29 15 Time Decay 1125 | . 212 206 160 164 12 100 71 160 20 20 . Lost Part 273 | . 40 106 . . . . 10 30 . . 87 Squads Dispatched 22 | . 3 3 6 4 5 . 1 . . . . Investigation 5 | . 2 . 1 1 1 . . . . . . Extermination 3 | . . . . 2 . . 1 . . . . Reinforcement 8 | . 1 3 2 1 1 . . . . . . Assault . | . . . . . . . . . . . . Garrison 6 | . . . 3 . 3 . . . . . . Intercept . | . . . . . . . . . . . . Searches Triggered . | . . . . . . . . . . . . Construction Impeded . | . . . . . . . . . . . . Haulers Reinforced . | . . . . . . . . . . . . Active Scanning Responses . | . . . . . . . . . . . . Cargo Convoy Interrupts . | . . . . . . . . . . . . Stealth | -11 -10 -9 -8 -7 -6 -5 -4 -4 -4 -3 -3 --------- Run | Yrd Mat Mat Mat Fac Fac Fac Fac Upp Upp Res Gar Distress Signals 11 | . 1 2 3 1 . . 4 . . . . Communications Jammed . | . . . . . . . . . . . . Distress Signals . | . . . . . . . . . . . . Times Spotted 148 | . 18 20 6 18 10 15 17 13 . 1 30 Peak Tracking Total 24 | . 3 8 3 6 3 7 4 10 . 1 24 Tactical Retreats 8 | . 2 . . . . . . 4 . . 2 Traps | -11 -10 -9 -8 -7 -6 -5 -4 -4 -4 -3 -3 ------- Run | Yrd Mat Mat Mat Fac Fac Fac Fac Upp Upp Res Gar Traps Triggered 3 | . 2 . 1 . . . . . . . . Indirectly . | . . . . . . . . . . . . Trap Hack Attempts . | . . . . . . . . . . . . Triggered . | . . . . . . . . . . . . Disarmed . | . . . . . . . . . . . . Reprogrammed . | . . . . . . . . . . . . Reused . | . . . . . . . . . . . . Traps Extracted . | . . . . . . . . . . . . Installed . | . . . . . . . . . . . . Triggered . | . . . . . . . . . . . . Machines | -11 -10 -9 -8 -7 -6 -5 -4 -4 -4 -3 -3 ---------- Run | Yrd Mat Mat Mat Fac Fac Fac Fac Upp Upp Res Gar Machines Disabled 6 | . 2 2 . . . 2 . . . . . Max in Single Turn 1 | . 1 1 . . . 1 . . . . . Machines Repaired . | . . . . . . . . . . . . Machines Dismantled . | . . . . . . . . . . . . Machines Sabotaged 1 | . . . . 1 . . . . . . . Overloaded Fab Kills . | . . . . . . . . . . . . Hacking | -11 -10 -9 -8 -7 -6 -5 -4 -4 -4 -3 -3 --------- Run | Yrd Mat Mat Mat Fac Fac Fac Fac Upp Upp Res Gar Machines Accessed 7 | . . 1 . 2 1 1 . . . 2 . Terminals 2 | . . 1 . 1 . . . . . . . Fabricators 1 | . . . . . . 1 . . . . . Repair Stations . | . . . . . . . . . . . . Recycling Units . | . . . . . . . . . . . . Scanalyzers 2 | . . . . . 1 . . . . 1 . Garrison Access 2 | . . . . 1 . . . . . 1 . Total Hacks 13 | . . 3 . 3 2 1 . . . 4 . Successful 8 | . . 1 . 2 1 1 . . . 3 . Failed 5 | . . 2 . 1 1 . . . . 1 . Catastrophic 1 | . . . . . 1 . . . . . . Database Lockouts . | . . . . . . . . . . . . Manual 6 | . . 3 . 3 . . . . . . . Terminals 5 | . . 3 . 2 . . . . . . . Fabricators 1 | . . . . . . 1 . . . . . Repair Stations . | . . . . . . . . . . . . Recycling Units . | . . . . . . . . . . . . Scanalyzers 5 | . . . . . 2 . . . . 3 . Garrison Access 2 | . . . . 1 . . . . . 1 . Terminal Hacks . | . . . . . . . . . . . . Fabricator Hacks 1 | . . . . . . 1 . . . . . Network Status 1 | . . . . . . 1 . . . . . Repair Station Hacks . | . . . . . . . . . . . . Recycling Unit Hacks . | . . . . . . . . . . . . Scanalyzer 3 | . . . . . 1 . . . . 2 . Insert Component 2 | . . . . . 1 . . . . 1 . Analyze 1 | . . . . . . . . . . 1 . Garrison Access Hacks 1 | . . . . . . . . . . 1 . Unlock Access 1 | . . . . . . . . . . 1 . Unauthorized Hacks 3 | . . 1 . 2 . . . . . . . Terminals 2 | . . 1 . 1 . . . . . . . Operators 1 | . . 1 . . . . . . . . . Sabotage 1 | . . . . 1 . . . . . . . Fabricators . | . . . . . . . . . . . . Repair Stations . | . . . . . . . . . . . . Recycling Units . | . . . . . . . . . . . . Scanalyzers . | . . . . . . . . . . . . Garrison Access 1 | . . . . 1 . . . . . . . Reprogram 1 | . . . . 1 . . . . . . . Data Cores Recovered 3 | . . . . . 1 1 1 . . . . Used . | . . . . . . . . . . . . Hacking Detections 5 | . . 1 . 1 1 1 . . . 1 . Full Trace Events 1 | . . . . . 1 . . . . . . Feedback Events . | . . . . . . . . . . . . Feedback Blocked . | . . . . . . . . . . . . Robot Schematics Acquired . | . . . . . . . . . . . . Robots Built . | . . . . . . . . . . . . Authchips . | . . . . . . . . . . . . Time . | . . . . . . . . . . . . Total Robot Build Rating . | . . . . . . . . . . . . Part Schematics Acquired 1 | . . . . . . . . . . 1 . Parts Built . | . . . . . . . . . . . . Authchips . | . . . . . . . . . . . . Time . | . . . . . . . . . . . . Total Part Build Rating . | . . . . . . . . . . . . Part Studies Acquired . | . . . . . . . . . . . . Parts Repaired . | . . . . . . . . . . . . Time . | . . . . . . . . . . . . Parts Recycled . | . . . . . . . . . . . . Recycled Matter . | . . . . . . . . . . . . Retrieved Matter . | . . . . . . . . . . . . Retrieved Components . | . . . . . . . . . . . . Parts Scanalyzed 1 | . . . . . . . . . . 1 . Part Schematics Acquired 1 | . . . . . . . . . . 1 . Parts Damaged . | . . . . . . . . . . . . Bothacking | -11 -10 -9 -8 -7 -6 -5 -4 -4 -4 -3 -3 ------------ Run | Yrd Mat Mat Mat Fac Fac Fac Fac Upp Upp Res Gar Used RIF Installer . | . . . . . . . . . . . . Robots Hacked . | . . . . . . . . . . . . Non-combat . | . . . . . . . . . . . . Combat . | . . . . . . . . . . . . Robot Hacks Applied . | . . . . . . . . . . . . Relay Couplers Released . | . . . . . . . . . . . . Fabnet Peak Effective % . | . . . . . . . . . . . . Robots Rewired . | . . . . . . . . . . . . Allies Hacked . | . . . . . . . . . . . . Hacks Repelled . | . . . . . . . . . . . . Allies | -11 -10 -9 -8 -7 -6 -5 -4 -4 -4 -3 -3 -------- Run | Yrd Mat Mat Mat Fac Fac Fac Fac Upp Upp Res Gar Total Allies . | . . . . . . . . . . . . Largest Group . | . . . . . . . . . . . . Highest-Rated Group . | . . . . . . . . . . . . Highest-Rated Ally . | . . . . . . . . . . . . Total Orders . | . . . . . . . . . . . . Ally Attacks . | . . . . . . . . . . . . Total Damage . | . . . . . . . . . . . . Kills . | . . . . . . . . . . . . Allies Corrupted . | . . . . . . . . . . . . Allies Melted . | . . . . . . . . . . . . Intel | -11 -10 -9 -8 -7 -6 -5 -4 -4 -4 -3 -3 ------- Run | Yrd Mat Mat Mat Fac Fac Fac Fac Upp Upp Res Gar Active Infowar (turns) 2955 | . . 118 115 1080 388 273 474 322 42 51 92 Optics 2837 | . . . 115 1080 388 273 474 322 42 51 92 Terrain 118 | . . 118 . . . . . . . . . Robot Analysis Total . | . . . . . . . . . . . . Derelict Logs Recovered 1 | . . . . . . . . . 1 . . Drone Launches . | . . . . . . . . . . . . Drone Recoveries . | . . . . . . . . . . . . Exploration | -11 -10 -9 -8 -7 -6 -5 -4 -4 -4 -3 -3 ------------- Run | Yrd Mat Mat Mat Fac Fac Fac Fac Upp Upp Res Gar Turns Passed 4095 | 51 562 426 334 1080 388 273 474 322 42 51 92 Spaces Moved 3189 | 48 268 249 195 660 273 252 394 549 61 96 144 Core 35 | 3 30 . . . . . . . . . 2 Treads 122 | . 35 87 . . . . . . . . . Legs 67 | . . . 67 . . . . . . . . Wheels 883 | 45 123 162 128 425 . . . . . . . Hover 2002 | . . . . 235 273 252 394 549 61 96 142 Flight 80 | . 80 . . . . . . . . . . Fastest Speed 34 | 50 90 90 90 105 45 38 34 40 44 44 44 Average Speed 80 | 85 139 114 125 105 99 47 40 43 44 44 53 Slowest Speed 500 | 90 440 160 190 105 105 102 42 44 44 44 500 Overloaded Moves . | . . . . . . . . . . . . Propulsion Burnouts . | . . . . . . . . . . . . Robots Hopped . | . . . . . . . . . . . . Potential Cave-ins . | . . . . . . . . . . . . Cave-ins Triggered . | . . . . . . . . . . . . Exploration Rate (%) 22 | 4 40 29 21 27 11 11 13 68 10 4 32 Regions Visited 11 Branch Regions 2 Pre-discovered Areas . | . . . . . . . . . . . . Known Exits Taken 1 | . . . . . . . . . . 1 . Unknown Exits Taken 10 | 1 1 1 1 1 1 1 1 1 1 . . Scrap Searched . | . . . . . . . . . . . . Spaces Dug 11 | . . . . . . . . 11 . . . Terrain Destroyed 220 | . 53 48 2 9 . 15 . 92 1 . . Melee . | . . . . . . . . . . . . Projectile 8 | . . . 2 2 . 2 . 1 1 . . AOE 212 | . 53 48 . 7 . 13 . 91 . . . Terrain Rammed . | . . . . . . . . . . . . Walls Destroyed . | . . . . . . . . . . . . Machines Disabled . | . . . . . . . . . . . . Actions | -11 -10 -9 -8 -7 -6 -5 -4 -4 -4 -3 -3 --------- Run | Yrd Mat Mat Mat Fac Fac Fac Fac Upp Upp Res Gar Total 4452 | 54 374 321 248 1037 389 392 717 595 66 104 155 Wait 943 | . 34 19 16 336 107 120 294 13 . 3 1 Move 3179 | 47 267 248 194 659 272 251 393 548 60 96 144 Hop . | . . . . . . . . . . . . Pick Up 42 | 1 7 2 7 8 2 4 7 1 . 3 . Fast Attach 34 | 6 4 4 8 3 3 2 3 . . . 1 Attach 16 | . . 6 . . 1 . 1 2 . 1 5 Detach 4 | . 1 . 2 . 1 . . . . . . Swap 42 | . 8 3 1 12 1 5 5 5 . 1 1 Drop 35 | . 1 1 . 13 1 3 14 1 . . 1 Fire 153 | . 52 36 20 6 . 7 . 25 6 . 1 Melee . | . . . . . . . . . . . . Ram 2 | . . 1 . . 1 . . . . . . Kick . | . . . . . . . . . . . . Crush 1 | . . 1 . . . . . . . . . Escape Stasis . | . . . . . . . . . . . . Rewire 1 | . . . . . . . . . . . 1 Trap . | . . . . . . . . . . . . Miscellaneous . | . . . . . . . . . . . . Route ------- -11/Scrapyard -10/Materials -9/Materials -8/Materials -7/Factory -6/Factory -5/Factory -4/Factory -4/Upper Caves -4/Upper Caves -3/Research (discovered 2 exits: Arm / Gar) -3/Garrison History --------- Turn | Location | Event 14 | -11/Scrapyard | Discovered new exit (range 16) 52 | -11/Scrapyard | Entered Materials 326 | -10/Materials | Build established: Mutant 436 | -10/Materials | Discovered new exit (range 14) 614 | -10/Materials | Entered another Materials area 614 | -9/Materials | Evolved 2 slots: Propulsion x2 865 | -9/Materials | Lost 3 parts (1n2w) 1017 | -9/Materials | Core integrity fell below 50% 1028 | -9/Materials | Discovered new exit (range 14) 1040 | -9/Materials | Entered another Materials area 1040 | -8/Materials | Evolved 2 slots: Utility x2 1055 | -8/Materials | Garrison activated, responded to threat 1059 | -8/Materials | Lost 7 parts (1p3n1u2w) 1327 | -8/Materials | Met 7R-MNS 1362 | -8/Materials | Discovered new exit (range 12) 1374 | -8/Materials | Entered Factory 1374 | -7/Factory | Evolved 2 slots: Utility x2 1375 | -7/Factory | Caught up to 7R-MNS 1529 | -7/Factory | Build established: Scavenger-Mutant 1932 | -7/Factory | Build established: Mutant 2414 | -7/Factory | Discovered new exit (range 17) 2454 | -7/Factory | Entered another Factory area 2454 | -6/Factory | Evolved 2 slots: Propulsion x2 2455 | -6/Factory | Caught up to 7R-MNS 2605 | -6/Factory | Garrison activated, responded to threat 2824 | -6/Factory | Discovered new exit (range 13) 2842 | -6/Factory | Entered another Factory area 2842 | -5/Factory | Evolved 2 slots: Propulsion x2 2843 | -5/Factory | Caught up to 7R-MNS 3078 | -5/Factory | Discovered new exit (range 17) 3115 | -5/Factory | Entered another Factory area 3115 | -4/Factory | Evolved 2 slots: Propulsion x2 3116 | -4/Factory | Caught up to 7R-MNS 3545 | -4/Factory | Discovered new exit (range 13) 3557 | -4/Factory | Build established: Scavenger-Mutant 3585 | -4/Factory | 7R-MNS successfully reached the Upper Caves 3589 | -4/Factory | Entered Upper Caves 3892 | -4/Upper Caves | Encountered a Warlord checkpoint 3909 | -4/Upper Caves | Discovered new exit (range 5) 3911 | -4/Upper Caves | Entered another Upper Caves area 3915 | -4/Upper Caves | Learned 12 Research zone layouts 3941 | -4/Upper Caves | Discovered new exit (range 17) 3950 | -4/Upper Caves | Encountered a Warlord checkpoint 3953 | -4/Upper Caves | Entered Research 3953 | -3/Research | Evolved 2 slots: Utility x2 3954 | -3/Research | Identified exit to Armory 4002 | -3/Research | Spotted B-86 Titan 4004 | -3/Research | Identified exit to Garrison 4004 | -3/Research | Entered Garrison 4054 | -3/Garrison | Triggered checkpoint 4057 | -3/Garrison | Triggered checkpoint 4058 | -3/Garrison | Triggered checkpoint 4060 | -3/Garrison | Triggered checkpoint 4085 | -3/Garrison | Triggered checkpoint 4095 | -3/Garrison | Core integrity fell below 50% 4096 | -3/Garrison | Self-destructed Last Messages --------------- 04062_ S-43 Plague suffers critical hit (Burn). 04062_ Gravmag Array destroyed. 04062_ Slug penetrates Wall. 04062_ S-43 Plague suffers critical hit (Destroy). 04063_ Gravmag Array destroyed. 04064_ Lgt. Antimatter Reactor destroyed. 04065_ Adv. Phase Shifter destroyed. 04065_ Penetrated by Slug. 04065_ Slug penetrates Wall. 04068_ Antigrav System destroyed. 04069_ S-43 Plague destroyed. 04069_ Gravmag Array destroyed. 04073_ Antigrav System destroyed. 04076_ S-43 Plague destroyed. 04082_ Com. HERF Cannon destroyed. 04084_ Gravmag Array destroyed. 04085_ Beams of light sweep through the air. An alarm sounds. 04090_ Garrison Terminal disabled. 04091_ Hvy. Machine Gun destroyed. 04092_ Assault Cannon destroyed. Map ----- +----------------------------------------------------+ | | | | | | | | | | | ?????????????????????????????????????????????????? | | ?????????????????????????????????????????????????? | | ?????????????????????????????????????????????????? | | ?????????????????????????????????????????????????? | | ?????????????????????????????????????????????????? | | ?????????????????????????????????????????????????? | | ?????????????????????????????????????????????????? | | ?????????????????????????????????????????????????? | | ?????????????????????????????????????????????????? | | ?????????????????????????????????????????????????? | | ????????????????????????###??????????????????????? | | ????????????????????????!!#??????????????????????? | | ???????????????????????? !??????????????????????? | | ???????????????????????? !??????????????????????? | | ????????????????????????# #??????????????????????? | | ???????????????????????## #??????????????????????? | | ???????????????????????# #??????????????????????? | | ???????????????????????# #??????????????????????? | | ???????????????????????# #??????????????????????? | | ????????????????# ?????# #??????????????????????? | | ???????????????## ## @#??????????????????????? | | ???????????????# g ##?????????????????????? | | ?????????????# + s #?????????????????????? | | ?????????????# ### ###ss##?????????????????????? | | ????????????????#"""???# #??????????????????????? | | ????????????????##?????#s #??????????????????????? | | ????#??????????????????#sl#??????????????????????? | | ???? ??????????????????# #??????????????????????? | | ???? ??????????????????#s #??????????????????????? | | ???? ??????????????????# s#??????????????????????? | | ???? ??????????????????# #??????????????????????? | | ???? ????????###########gg###############????????? | | ???? ????????# ?????? | | ???? ????????# %= ?????? | | ???# #???????# ?????? | | ???# #???????# ###+#############"""#####???????? | | ???# #???????# #?#?????????????????????????????? | | ???# #?##????# #???????????????????????????????? | | ??? ? ????# #???????????????????????????????? | | ???# #?# ????# #???????????????????????????????? | | ???# #?#+##### = #???????????????????????????????? | | ???# #?# ##[% #???????????????????????????????? | | ??##+### ## #???????????????????????????????? | | ### #??#### #??????????????????????? | | + #??????????????????????? | +----------------------------------------------------+ Best States ------------- Heat Dissipation 46 Energy Generation 21 Energy Capacity 300 Matter Stores 300 Matter Capacity 300 Sight Range 20 Terrain Scan Range 14 Terrain Scan Density 10 Additional Mass Support 6 Armor Coverage 600 Resistance: TH 15 Evasion (%) 66 Launcher Accuracy 60 Recoil Reduction 2 Offensive Hacking 12 Item Schematics ----------------- Antigrav System | -3/Research | Scanalyzed Robot Schematics ------------------ None Fabricated ------------ Nothing Repaired ---------- Nothing Studied --------- None Alien Tech Used ----------------- None Achievements -------------- Escorted To Danger Challenges ------------ None Game ------ Seed SpacefoldBlastDeflector Manual? 0 Play Time 00:43:18 Cumulative 164.5 hours Start 2026.03.05 @ 18:11:41 End 2026.03.05 @ 22:50:42 Sessions 3 Manual Loads 0 Difficulty Rogue Special Mode None Game No. 283 Rogue 283 Adventurer 0 Explorer 0 Win Type - Total 1 Types 1/0/0/0/0/0/0/0/0/0 Lore% 53 Gallery% 56 Achievement% 35 Wizard Run 0 Options --------- Layout 0 ASCII 0 Keyboard 1 Movement Numpad Keybinds 0 Fullscreen 2 Font 18/SmallcapsGlow Map View 76x50 Zoom Use 0% Tactical HUD 1 Map Filters NONE Filters NONE Steam 1 RUN: af62878a-62ea-4bdc-808d-dc8d22f45344